fUSD/lending_fUSD_20250519
["ID","MTS","AMOUNT","RATE_DAILY","PERIOD"]
[361603213,1747633846966,-993.96,0.00013698,2]
[361603215,1747633846975,-400.0,0.00013698,2]
[361603217,1747633846984,-500.52,0.00013698,2]
[361603219,1747633846993,-403.86509828,0.00013698,2]
[361603221,1747633847003,-400.0,0.00013698,2]
[361603223,1747633847017,-1500.47,0.00013698,2]
[361603225,1747633847028,-1329.51,0.00013698,2]
[361603226,1747633847037,-400.0,0.00013698,2]
[361603228,1747633847047,-400.0,0.00013698,2]
[361603230,1747633847056,-1986.59,0.00013698,2]
[361603232,1747633847065,-1039.74,0.00013698,2]
[361603234,1747633847074,-400.0,0.00013698,2]
[361603236,1747633847083,-1898.23,0.00013698,2]
[361603238,1747633847091,-400.0,0.00013698,2]
[361603240,1747633847104,-1244.31,0.00013698,2]
[361603242,1747633847118,-400.0,0.00013698,2]
[361603244,1747633847128,-4112.34,0.00013698,2]
[361603246,1747633847138,-400.0,0.00013698,2]
[361603248,1747633847148,-2506.15,0.00013698,2]
[361603250,1747633847157,-400.0,0.00013698,2]
[361603252,1747633847166,-1031.52,0.00013698,2]
[361603254,1747633847176,-1205.75,0.00013698,2]
[361603256,1747633847185,-569.86,0.00013698,2]
[361603258,1747633847195,-827.96,0.00013698,2]
[361603260,1747633847204,-400.0,0.00013698,2]
[361603262,1747633847214,-400.0,0.00013698,2]
[361603264,1747633847223,-864.76,0.00013698,2]
[361603266,1747633847233,-400.0,0.00013698,2]
[361603268,1747633847243,-400.0,0.00013698,2]
[361603270,1747633847252,-1156.05,0.00013698,2]
[361603273,1747633847262,-400.0,0.00013698,2]
[361603274,1747633847272,-400.0,0.00013698,2]
[361603276,1747633847281,-400.0,0.00013698,2]
[361603279,1747633847290,-400.0,0.00013698,2]
[361603281,1747633847300,-400.0,0.00013698,2]
[361603283,1747633847309,-684.93,0.00013698,2]
[361603285,1747633847319,-739.89,0.00013698,2]
[361603287,1747633847329,-610.36,0.00013698,2]
[361603289,1747633847338,-409.68492825,0.00013698,2]
[361603291,1747633847347,-741.66,0.00013698,2]
[361603293,1747633847357,-1164.77,0.00013698,2]
[361603295,1747633847366,-7520.39,0.00013698,2]
[361603297,1747633847375,-409.15142023,0.00013698,2]
[361603299,1747633847384,-464.96,0.00013698,2]
[361603301,1747633847393,-404.16548153,0.00013698,2]
[361603303,1747633847403,-400.0,0.00013698,2]
[361603305,1747633847412,-400.0,0.00013698,2]
[361603307,1747633847422,-400.0,0.00013698,2]
[361603308,1747633847431,-1091.33,0.00013698,2]
[361603310,1747633847440,-512.02865456,0.00013698,2]
[361603313,1747633847449,-400.0,0.00013698,2]
[361603315,1747633847458,-400.0,0.00013698,2]
[361603317,1747633847467,-400.0,0.00013698,2]
[361603319,1747633847477,-445.24,0.00013698,2]
[361603321,1747633847486,-430.67,0.00013698,2]
[361603323,1747633847495,-404.0857353,0.00013698,2]
[361603325,1747633847504,-400.0,0.00013698,2]
[361603326,1747633847513,-9420.26,0.00013698,2]
[361603329,1747633847523,-400.0,0.00013698,2]
[361603331,1747633847532,-781.51,0.00013698,2]
[361603333,1747633847541,-400.0,0.00013698,2]
[361603335,1747633847551,-355.05958738,0.00013698,2]
[361603337,1747633847560,-400.0,0.00013698,2]
[361603339,1747633847569,-542.89,0.00013698,2]
[361603341,1747633847579,-400.0,0.00013698,2]
[361603342,1747633847588,-400.85415035,0.00013698,2]
[361603345,1747633847598,-803.48,0.00013698,2]
[361603347,1747633847607,-400.0,0.00013698,2]
[361603348,1747633847617,-400.0,0.00013698,2]
[361603351,1747633847626,-400.0,0.00013698,2]
[361603353,1747633847637,-400.0,0.00013698,2]
[361603355,1747633847646,-400.0,0.00013698,2]
[361603357,1747633847655,-11624.57,0.00013698,2]
[361603359,1747633847665,-419.87,0.00013698,2]
[361603361,1747633847674,-500.0,0.00013698,2]
[361603363,1747633847684,-18181.03,0.00013698,2]
[361603365,1747633847694,-400.0,0.00013698,2]
[361603367,1747633847703,-762.45,0.00013698,2]
[361603369,1747633847713,-708.04,0.00013698,2]
[361603371,1747633847722,-263.14069619,0.00013698,2]
[361603373,1747633847731,-400.0,0.00013698,2]
[361603375,1747633847740,-400.0,0.00013698,2]
[361603377,1747633847750,-2445.1,0.00013698,2]
[361603379,1747633847759,-400.0,0.00013698,2]
[361603380,1747633847768,-400.0,0.00013698,2]
[361603383,1747633847779,-400.0,0.00013698,2]
[361603384,1747633847790,-400.0,0.00013698,2]
[361603387,1747633847800,-400.0,0.00013698,2]
[361603389,1747633847809,-1632.05,0.00013698,2]
[361603391,1747633847818,-442.21,0.00013698,2]
[361603393,1747633847829,-400.0,0.00013698,2]
[361603394,1747633847838,-1300.14,0.00013698,2]
[361603396,1747633847847,-1014.21,0.00013698,2]
[361603398,1747633847858,-475.40208848,0.00013698,2]
[361603400,1747633847867,-400.0,0.00013698,2]
[361603402,1747633847876,-625.76,0.00013698,2]
[361603404,1747633847886,-400.0,0.00013698,2]
[361603413,1747633847960,-4304.47,0.00013698,2]
[361603415,1747633847969,-400.0,0.00013698,2]
[361603417,1747633847980,-1627.05,0.00013698,2]
[361603419,1747633847988,-400.0,0.00013698,2]
[361603421,1747633847998,-7063.41,0.00013698,2]
[361603423,1747633848006,-305.85197547,0.00013698,2]
[361603425,1747633848015,-1016.38,0.00013698,2]
[361603427,1747633848024,-400.0,0.00013698,2]
[361603429,1747633848034,-806.41,0.00013698,2]
[361603431,1747633848043,-850.55,0.00013698,2]
[361603433,1747633848053,-640.75,0.00013698,2]
[361603435,1747633848062,-9425.99,0.00013698,2]
[361603437,1747633848072,-400.0,0.00013698,2]
[361603439,1747633848082,-400.0,0.00013698,2]
[361603441,1747633848091,-2440.98,0.00013698,2]
[361603443,1747633848101,-500.35,0.00013698,2]
[361603445,1747633848110,-4626.57,0.00013698,2]
[361603447,1747633848119,-3796.33,0.00013698,2]
[361603449,1747633848130,-400.0,0.00013698,2]
[361603451,1747633848140,-1953.51,0.00013698,2]
[361603453,1747633848149,-425.38,0.00013698,2]
[361603455,1747633848158,-400.0,0.00013698,2]
[361603457,1747633848167,-400.0,0.00013698,2]
[361603459,1747633848176,-400.0,0.00013698,2]
[361603461,1747633848185,-400.0,0.00013698,2]
[361603463,1747633848194,-1235.63,0.00013698,2]
[361603465,1747633848203,-88828.08,0.00013698,2]
[361603467,1747633848213,-400.0,0.00013698,2]
[361603469,1747633848221,-1149.58,0.00013698,2]
[361603471,1747633848230,-400.0,0.00013698,2]
[361603473,1747633848239,-400.0,0.00013698,2]
[361603475,1747633848248,-400.0,0.00013698,2]
[361603477,1747633848258,-400.0,0.00013698,2]
[361603479,1747633848266,-400.0,0.00013698,2]
[361603480,1747633848275,-1285.73,0.00013698,2]
[361603482,1747633848285,-15028.59,0.00013698,2]
[361603485,1747633848294,-400.0,0.00013698,2]
[361603486,1747633848304,-400.0,0.00013698,2]
[361603488,1747633848313,-400.0,0.00013698,2]
[361603490,1747633848322,-1000.0,0.00013698,2]
[361603492,1747633848331,-403.95,0.00013698,2]
[361603494,1747633848341,-2022.94,0.00013698,2]
[361603496,1747633848350,-400.0,0.00013698,2]
[361603498,1747633848359,-1234.45,0.00013698,2]
[361603500,1747633848368,-403.64054502,0.00013698,2]
[361603502,1747633848378,-644.62,0.00013698,2]
[361603503,1747633848387,-400.0,0.00013698,2]
[361603504,1747633848396,-500.0,0.00013698,2]
[361603505,1747633848404,-3223.06,0.00013698,2]
[361603506,1747633848413,-1855.67,0.00013698,2]
[361603507,1747633848422,-400.0,0.00013698,2]
[361603508,1747633848432,-400.0,0.00013698,2]
[361603509,1747633848441,-400.0,0.00013698,2]
[361603510,1747633848450,-400.0,0.00013698,2]
[361603511,1747633848460,-401.90098463,0.00013698,2]
[361603512,1747633848469,-404.13617223,0.00013698,2]
[361603514,1747633848478,-400.0,0.00013698,2]
[361603516,1747633848487,-400.0,0.00013698,2]
[361603518,1747633848496,-400.0,0.00013698,2]
[361603520,1747633848505,-400.0,0.00013698,2]
[361603522,1747633848514,-732.97,0.00013698,2]
[361603524,1747633848523,-1757.61,0.00013698,2]
[361603526,1747633848533,-400.0,0.00013698,2]
[361603528,1747633848542,-426.58,0.00013698,2]
[361603530,1747633848551,-481.03967614,0.00013698,2]
[361603532,1747633848560,-1111.28,0.00013698,2]
[361603534,1747633848569,-438.59519348,0.00013698,2]
[361603536,1747633848579,-651.37,0.00013698,2]
[361603538,1747633848589,-400.0,0.00013698,2]
[361603540,1747633848598,-400.0,0.00013698,2]
[361603542,1747633848608,-400.0,0.00013698,2]
[361603544,1747633848618,-400.0,0.00013698,2]
[361603546,1747633848628,-400.0,0.00013698,2]
[361603548,1747633848637,-2018.94,0.00013698,2]
[361603550,1747633848647,-628.04,0.00013698,2]
[361603552,1747633848656,-400.57331112,0.00013698,2]
[361603554,1747633848666,-428.87,0.00013698,2]
[361603556,1747633848676,-400.0,0.00013698,2]
[361603558,1747633848685,-2274.52344468,0.00013698,2]
[361603560,1747633848695,-1250.16,0.00013698,2]
[361603562,1747633848705,-1074.2,0.00013698,2]
[361603564,1747633848715,-400.0,0.00013698,2]
[361603566,1747633848725,-400.0,0.00013698,2]
[361603568,1747633848735,-400.0,0.00013698,2]
[361603570,1747633848745,-400.0,0.00013698,2]
[361603572,1747633848755,-1887.41,0.00013698,2]
[361603574,1747633848764,-400.0,0.00013698,2]
[361603576,1747633848774,-608.57,0.00013698,2]
[361603578,1747633848787,-579.89,0.00013698,2]
[361603580,1747633848797,-400.0,0.00013698,2]
[361603582,1747633848806,-559.32,0.00013698,2]
[361603584,1747633848817,-3578.73,0.00013698,2]
[361603586,1747633848827,-400.0,0.00013698,2]
[361603588,1747633848836,-400.0,0.00013698,2]
[361603590,1747633848846,-401.07433648,0.00013698,2]
[361603592,1747633848856,-400.0,0.00013698,2]
[361603594,1747633848868,-510.47468195,0.00013698,2]
[361603596,1747633848880,-2602.28,0.00013698,2]
[361603598,1747633848889,-400.0,0.00013698,2]
[361603600,1747633848899,-400.0,0.00013698,2]
[361603602,1747633848908,-570.51,0.00013698,2]
[361603604,1747633848917,-673.82,0.00013698,2]
[361603606,1747633848927,-400.0,0.00013698,2]
[361603608,1747633848937,-380.0,0.00013698,2]
[361603610,1747633848947,-557.78,0.00013698,2]
[361603612,1747633848957,-400.0,0.00013698,2]
[361603614,1747633848966,-400.0,0.00013698,2]
[361603615,1747633848975,-2154.61,0.00013698,2]
[361603617,1747633848985,-402.83561577,0.00013698,2]
[361603619,1747633848994,-807.03,0.00013698,2]
[361603621,1747633849003,-840.34,0.00013698,2]
[361603623,1747633849012,-400.0,0.00013698,2]
[361603625,1747633849021,-425.79,0.00013698,2]
[361603627,1747633849033,-400.0,0.00013698,2]
[361603629,1747633849042,-400.0,0.00013698,2]
[361603631,1747633849051,-400.0,0.00013698,2]
[361603633,1747633849061,-500.62194233,0.00013698,2]
[361603635,1747633849070,-400.0,0.00013698,2]
[361603637,1747633849079,-250.76352385,0.00013698,2]
[361603639,1747633849088,-400.0,0.00013698,2]
[361603641,1747633849098,-400.0,0.00013698,2]
[361603643,1747633849108,-400.0,0.00013698,2]
[361603645,1747633849117,-671.07,0.00013698,2]
[361603647,1747633849126,-480.01,0.00013698,2]
[361603649,1747633849137,-500.0,0.00013698,2]
[361603651,1747633849147,-400.0,0.00013698,2]
[361603653,1747633849156,-400.0,0.00013698,2]
[361603655,1747633849166,-500.0,0.00013698,2]
[361603657,1747633849174,-400.0,0.00013698,2]
[361603659,1747633849184,-3284.99,0.00013698,2]
[361603661,1747633849193,-400.0,0.00013698,2]
[361603663,1747633849202,-445.04,0.00013698,2]
[361603665,1747633849211,-400.0,0.00013698,2]
[361603667,1747633849220,-400.0,0.00013698,2]
[361603669,1747633849229,-500.0,0.00013698,2]
[361603670,1747633849238,-585.89,0.00013698,2]
[361603672,1747633849247,-377.95301251,0.00013698,2]
[361603674,1747633849256,-400.0,0.00013698,2]
[361603676,1747633849266,-400.0,0.00013698,2]
[361603678,1747633849275,-11265.88,0.00013698,2]
[361603680,1747633849285,-400.0,0.00013698,2]
[361603682,1747633849294,-473.62,0.00013698,2]
[361603685,1747633849303,-400.0,0.00013698,2]
[361603686,1747633849312,-2559.42,0.00013698,2]
[361603688,1747633849322,-1006.34,0.00013698,2]
[361603690,1747633849331,-554.45,0.00013698,2]
[361603692,1747633849340,-853.33,0.00013698,2]
[361603694,1747633849349,-1122.7,0.00013698,2]
[361603696,1747633849358,-400.0,0.00013698,2]
[361603698,1747633849368,-400.0,0.00013698,2]
[361603701,1747633849378,-400.0,0.00013698,2]
[361603702,1747633849386,-3839.92,0.00013698,2]
[361603704,1747633849395,-2391.17,0.00013698,2]
[361603706,1747633849404,-1219.56,0.00013698,2]
[361603708,1747633849414,-400.0,0.00013698,2]
[361603710,1747633849423,-7466.65,0.00013698,2]
[361603712,1747633849432,-400.0,0.00013698,2]
[361603714,1747633849441,-352.11453447,0.00013698,2]
[361603716,1747633849450,-467.21,0.00013698,2]
[361603718,1747633849458,-400.0,0.00013698,2]
[361603720,1747633849467,-401.13989239,0.00013698,2]
[361603722,1747633849476,-403.44985875,0.00013698,2]
[361603724,1747633849485,-400.0,0.00013698,2]
[361603726,1747633849493,-156.66953,0.00013698,2]
[361603728,1747633849502,-400.0,0.00013698,2]
[361603730,1747633849511,-400.0,0.00013698,2]
[361603732,1747633849520,-787.01,0.00013698,2]
[361603734,1747633849529,-400.0,0.00013698,2]
[361603736,1747633849538,-400.0,0.00013698,2]
[361603738,1747633849547,-400.0,0.00013698,2]
[361603740,1747633849556,-400.0,0.00013698,2]
[361603742,1747633849565,-400.0,0.00013698,2]
[361603744,1747633849574,-2343.01,0.00013698,2]
[361603746,1747633849583,-400.0,0.00013698,2]
[361603747,1747633849592,-1546.31,0.00013698,2]
[361603750,1747633849601,-400.0,0.00013698,2]
[361603751,1747633849611,-1682.49,0.00013698,2]
[361603753,1747633849620,-1673.15,0.00013698,2]
[361603755,1747633849630,-400.0,0.00013698,2]
[361603757,1747633849639,-400.0,0.00013698,2]
[361603759,1747633849648,-2128.68,0.00013698,2]
[361603761,1747633849658,-1018.42,0.00013698,2]
[361603763,1747633849667,-491.51,0.00013698,2]
[361603765,1747633849676,-761.42,0.00013698,2]
[361603767,1747633849685,-584.34,0.00013698,2]
[361603769,1747633849694,-800.47,0.00013698,2]
[361603771,1747633849703,-400.0,0.00013698,2]
[361603773,1747633849713,-612.35,0.00013698,2]
[361603775,1747633849722,-300.0,0.00013698,2]
[361603777,1747633849731,-457.2,0.00013698,2]
[361603779,1747633849740,-200.0,0.00013699,2]
[361603781,1747633849750,-611.61,0.00013699,2]
[361603783,1747633849758,-1500.0,0.00013699,2]
[361603785,1747633849767,-174.86001707,0.00013699,2]
[361603787,1747633849777,-358.22092349,0.00013699,2]
[361603789,1747633849789,-500.0,0.00013699,2]
[361603791,1747633849798,-500.0,0.00013699,2]
[361603793,1747633849807,-500.0,0.00013699,2]
[361603795,1747633849816,-500.0,0.00013699,2]
[361603797,1747633849824,-500.0,0.00013699,2]
[361603799,1747633849834,-500.0,0.00013699,2]
[361603801,1747633849844,-500.0,0.00013699,2]
[361603803,1747633849853,-500.0,0.00013699,2]
[361603805,1747633849863,-500.0,0.00013699,2]
[361603807,1747633849872,-500.0,0.00013699,2]
[361603809,1747633849882,-500.0,0.00013699,2]
[361603811,1747633849891,-500.0,0.00013699,2]
[361603813,1747633849900,-500.0,0.00013699,2]
[361603814,1747633849909,-500.0,0.00013699,2]
[361603816,1747633849918,-500.0,0.00013699,2]
[361603818,1747633849927,-500.0,0.00013699,2]
[361603820,1747633849935,-500.0,0.00013699,2]
[361603822,1747633849945,-500.0,0.00013699,2]
[361603824,1747633849954,-500.0,0.00013699,2]
[361603826,1747633849963,-500.0,0.00013699,2]
[361603828,1747633849972,-500.0,0.00013699,2]
[361603830,1747633849981,-500.0,0.00013699,2]
[361603832,1747633849990,-500.0,0.00013699,2]
[361603834,1747633850001,-500.0,0.00013699,2]
[361603836,1747633850010,-500.0,0.00013699,2]
[361603838,1747633850019,-321.01299527,0.00013699,2]
[361603840,1747633850028,-1024.32,0.000137,2]
[361603842,1747633850037,-2453.3286,0.00013708,2]
[361603844,1747633850045,-179.46663083,0.00013749,2]
[361603846,1747633850054,-135008.35196187,0.0001377,2]
[361603848,1747633850063,-151.0,0.0001377,2]
[361603850,1747633850071,-219.169483,0.0001377,2]
[361603852,1747633850080,-155.203847,0.0001377,2]
[361603854,1747633850089,-219.169483,0.0001377,2]
[361603856,1747633850099,-193.975968,0.0001377,2]
[361603858,1747633850108,-151.0,0.0001377,2]
[361603860,1747633850117,-193.975968,0.0001377,2]
[361603862,1747633850125,-233.146234,0.0001377,2]
[361603864,1747633850135,-151.0,0.0001377,2]
[361603866,1747633850145,-151.0,0.0001377,2]
[361603868,1747633850155,-151.0,0.0001377,2]
[361603870,1747633850164,-151.0,0.0001377,2]
[361603872,1747633850173,-151.0,0.0001377,2]
[361603874,1747633850181,-236.009418,0.0001377,2]
[361603876,1747633850190,-502.3053739,0.00013798,2]
[361603878,1747633850199,-500.0,0.00013799,2]
[361603880,1747633850208,-500.0,0.00013799,2]
[361603881,1747633850217,-174.86001707,0.00013799,2]
[361603884,1747633850226,-2911.766,0.000138,2]
[361603885,1747633850235,-172.749,0.000138,2]
[361603887,1747633850243,-331.34,0.00013806,2]
[361603889,1747633850252,-156.64,0.00013807,2]
[361603891,1747633850261,-500.0,0.00013807,2]
[361603893,1747633850270,-500.0,0.00013807,2]
[361603895,1747633850279,-500.0,0.00013807,2]
[361603897,1747633850288,-500.0,0.00013807,2]
[361603899,1747633850296,-500.0,0.00013807,2]
[361603901,1747633850305,-500.0,0.00013807,2]
[361603903,1747633850315,-500.0,0.00013807,2]
[361603905,1747633850323,-500.0,0.00013807,2]
[361603907,1747633850332,-500.0,0.00013807,2]
[361603909,1747633850341,-500.0,0.00013807,2]
[361603911,1747633850351,-500.0,0.00013807,2]
[361603913,1747633850361,-188.959272,0.00013807,2]
[361603915,1747633850370,-151.0,0.00013807,2]
[361603917,1747633850379,-151.0,0.00013807,2]
[361603919,1747633850387,-151.0,0.00013807,2]
[361603921,1747633850396,-151.0,0.00013807,2]
[361603923,1747633850405,-169.325498,0.00013807,2]
[361603925,1747633850414,-169.325498,0.00013807,2]
[361603927,1747633850424,-151.0,0.00013807,2]
[361603929,1747633850433,-151.0,0.00013807,2]
[361603931,1747633850442,-1680.0,0.00013807,2]
[361603933,1747633850451,-500.0,0.00013807,2]
[361603935,1747633850461,-500.0,0.00013807,2]
[361603937,1747633850470,-896.0,0.00013808,2]
[361603939,1747633850479,-302.47264962,0.00013808,2]
[361603941,1747633850488,-3135.199194,0.00013808,2]
[361603943,1747633850497,-1131.957962,0.00013808,2]
[361603945,1747633850506,-400.0,0.00013808,2]
[361603946,1747633850515,-981.559336,0.00013808,2]
[361603948,1747633850524,-400.0,0.00013808,2]
[361603949,1747633850534,-400.0,0.00013808,2]
[361603950,1747633850543,-400.0,0.00013808,2]
[361603951,1747633850553,-400.0,0.00013808,2]
[361603952,1747633850562,-400.0,0.00013808,2]
[361603953,1747633850572,-400.0,0.00013808,2]
[361603954,1747633850581,-400.0,0.00013808,2]
[361603955,1747633850591,-400.0,0.00013808,2]
[361603956,1747633850600,-400.0,0.00013808,2]
[361603957,1747633850609,-403.27774162,0.00013808,2]
[361603959,1747633850619,-400.0,0.00013808,2]
[361603961,1747633850628,-1010.59104096,0.00013808,2]
[361603963,1747633850638,-584.58,0.00013808,2]
[361603965,1747633850648,-400.0,0.00013808,2]
[361603967,1747633850657,-401.17383171,0.00013808,2]
[361603969,1747633850666,-400.0,0.00013808,2]
[361603971,1747633850675,-400.0,0.00013808,2]
[361603973,1747633850684,-400.0,0.00013808,2]
[361603975,1747633850693,-400.0,0.00013808,2]
[361603977,1747633850702,-400.0,0.00013808,2]
[361603979,1747633850711,-405.23124854,0.00013808,2]
[361603981,1747633850720,-400.0,0.00013808,2]
[361603983,1747633850729,-559.0,0.00013808,2]
[361603985,1747633850738,-400.0,0.00013808,2]
[361603987,1747633850747,-550.64,0.00013808,2]
[361603988,1747633850756,-400.0,0.00013808,2]
[361603990,1747633850765,-400.0,0.00013808,2]
[361603992,1747633850774,-197.16990507,0.00013808,2]
[361603994,1747633850785,-400.0,0.00013808,2]
[361603996,1747633850794,-400.0,0.00013808,2]
[361603998,1747633850803,-400.0,0.00013808,2]
[361604000,1747633850811,-407.17,0.00013808,2]
[361604002,1747633850820,-400.0,0.00013808,2]
[361604004,1747633850830,-400.0,0.00013808,2]
[361604006,1747633850839,-400.0,0.00013808,2]
[361604008,1747633850848,-693.98,0.00013808,2]
[361604010,1747633850858,-504.52907355,0.00013808,2]
[361604012,1747633850867,-400.0,0.00013808,2]
[361604014,1747633850876,-400.0,0.00013808,2]
[361604016,1747633850885,-400.0,0.00013808,2]
[361604018,1747633850894,-400.0,0.00013808,2]
[361604020,1747633850903,-400.0,0.00013808,2]
[361604022,1747633850912,-400.0,0.00013808,2]
[361604024,1747633850921,-652.06,0.00013808,2]
[361604026,1747633850930,-695.66,0.00013808,2]
[361604028,1747633850938,-400.0,0.00013808,2]
[361604029,1747633850947,-400.0,0.00013808,2]
[361604031,1747633850956,-411.78,0.00013808,2]
[361604033,1747633850964,-574.74,0.00013808,2]
[361604035,1747633850973,-400.0,0.00013808,2]
[361604037,1747633850982,-400.0,0.00013808,2]
[361604039,1747633850991,-365.8027929,0.00013808,2]
[361604041,1747633851000,-524.89,0.00013808,2]
[361604043,1747633851009,-400.0,0.00013808,2]
[361604045,1747633851018,-400.0,0.00013808,2]
[361604047,1747633851027,-405.30858522,0.00013808,2]
[361604049,1747633851036,-400.0,0.00013808,2]
[361604051,1747633851045,-400.0,0.00013808,2]
[361604053,1747633851054,-400.0,0.00013808,2]
[361604055,1747633851063,-400.0,0.00013808,2]
[361604057,1747633851072,-400.0,0.00013808,2]
[361604059,1747633851081,-400.0,0.00013808,2]
[361604061,1747633851090,-400.0,0.00013808,2]
[361604063,1747633851099,-400.0,0.00013808,2]
[361604065,1747633851108,-389.214969,0.00013808,2]
[361604067,1747633851117,-565.88,0.00013808,2]
[361604069,1747633851126,-389.214969,0.00013808,2]
[361604071,1747633851135,-400.0,0.00013808,2]
[361604073,1747633851144,-151.0,0.00013808,2]
[361604075,1747633851152,-400.0,0.00013808,2]
[361604077,1747633851161,-400.0,0.00013808,2]
[361604079,1747633851170,-400.0,0.00013808,2]
[361604081,1747633851179,-547.79,0.00013808,2]
[361604083,1747633851188,-494.56,0.00013808,2]
[361604085,1747633851197,-400.0,0.00013808,2]
[361604087,1747633851206,-400.0,0.00013808,2]
[361604089,1747633851215,-151.0,0.00013808,2]
[361604091,1747633851224,-400.0,0.00013808,2]
[361604093,1747633851233,-151.0,0.00013808,2]
[361604095,1747633851242,-400.0,0.00013808,2]
[361604097,1747633851251,-535.55,0.00013808,2]
[361604098,1747633851259,-588.77,0.00013808,2]
[361604101,1747633851269,-400.0,0.00013808,2]
[361604103,1747633851278,-400.0,0.00013808,2]
[361604104,1747633851287,-400.0,0.00013808,2]
[361604106,1747633851295,-400.0,0.00013808,2]
[361604108,1747633851304,-400.0,0.00013808,2]
[361604110,1747633851313,-400.0,0.00013808,2]
[361604112,1747633851322,-160.50663043,0.00013808,2]
[361604114,1747633851332,-400.0,0.00013808,2]
[361604116,1747633851341,-457.67,0.00013808,2]
[361604118,1747633851350,-400.0,0.00013808,2]
[361604120,1747633851359,-400.0,0.00013808,2]
[361604122,1747633851367,-400.0,0.00013808,2]
[361604124,1747633851377,-465.82,0.00013808,2]
[361604126,1747633851385,-780.67,0.00013808,2]
[361604128,1747633851394,-220.466464,0.00013808,2]
[361604130,1747633851403,-151.0,0.00013808,2]
[361604132,1747633851412,-400.0,0.00013808,2]
[361604134,1747633851421,-152.639894,0.00013808,2]
[361604136,1747633851430,-400.0,0.00013808,2]
[361604138,1747633851440,-401.44021596,0.00013808,2]
[361604140,1747633851451,-400.0,0.00013808,2]
[361604142,1747633851460,-400.0,0.00013808,2]
[361604144,1747633851469,-771.6,0.00013808,2]
[361604146,1747633851478,-400.0,0.00013808,2]
[361604148,1747633851487,-461.35,0.00013808,2]
[361604150,1747633851496,-400.0,0.00013808,2]
[361604152,1747633851505,-663.31,0.00013808,2]
[361604154,1747633851514,-400.0,0.00013808,2]
[361604156,1747633851523,-400.0,0.00013808,2]
[361604158,1747633851532,-400.0,0.00013808,2]
[361604159,1747633851541,-954.99,0.00013808,2]
[361604161,1747633851550,-400.0,0.00013808,2]
[361604163,1747633851559,-400.0,0.00013808,2]
[361604165,1747633851568,-400.0,0.00013808,2]
[361604167,1747633851577,-400.0,0.00013808,2]
[361604169,1747633851587,-400.0,0.00013808,2]
[361604171,1747633851595,-698.07,0.00013808,2]
[361604173,1747633851604,-409.8,0.00013808,2]
[361604175,1747633851614,-434.79,0.00013808,2]
[361604177,1747633851623,-773.47,0.00013808,2]
[361604179,1747633851633,-844.74,0.00013808,2]
[361604181,1747633851642,-151.0,0.00013808,2]
[361604183,1747633851650,-151.0,0.00013808,2]
[361604185,1747633851659,-400.0,0.00013808,2]
[361604187,1747633851668,-400.0,0.00013808,2]